Department family,Entity,Date,Expense type,Expense area,Supplier,Transaction number,Amount,Description,Supplier Postcode,Expenditure Type,Supplier Type
HM Procurator General and Treasury Solicitor,Government Legal Department,04/07/2022,Agency Staff: Legal,Litigation Division,Alexander Mann Solutions Limited,239925,38534.89,Payment for interim legal professionals,EC2N 3AQ,Administration,
HM Procurator General and Treasury Solicitor,Government Legal Department,04/07/2022,Agency Staff: Legal,Litigation Division,Alexander Mann Solutions Limited,239938,39786.53,Payment for interim legal professionals,EC2N 3AQ,Administration,
HM Procurator General and Treasury Solicitor,Government Legal Department,04/07/2022,Agency Staff: Legal,Litigation Division,Alexander Mann Solutions Limited,239940,44197.61,Payment for interim legal professionals,EC2N 3AQ,Administration,
HM Procurator General and Treasury Solicitor,Government Legal Department,05/07/2022,Advisory External Legal Spend,Commercial Legal Group,Dla Piper  UK Llp,240018,27136.00,Payment for professional services,S1 2JX,Administration,
HM Procurator General and Treasury Solicitor,Government Legal Department,05/07/2022,Advisory External Legal Spend,Commercial Legal Group,Tlt Solicitors,239999,20940.00,Payment for professional services,BS1 6TP,Administration,
HM Procurator General and Treasury Solicitor,Government Legal Department,06/07/2022,Ext Serv:Security Clearances,Corporate Resources Group,Cabinet Office,240068,34000.00,Payment relating to staff vetting process,SW1H 9GL,Administration,Public Sector
HM Procurator General and Treasury Solicitor,Government Legal Department,07/07/2022,Accommodation: Rent,Corporate Resources Group,Stiles Harold Williams Partnership Llp,240109,76997.67,Payment of rent and service charge,BN1 3FE,Administration,
HM Procurator General and Treasury Solicitor,Government Legal Department,07/07/2022,Accommodation: Rent,Corporate Resources Group,Government Property Agency,240113,31798.01,Payment of rent and service charge,SW1H 0NN,Administration,Public Sector
HM Procurator General and Treasury Solicitor,Government Legal Department,07/07/2022,Maintenance: Software,Corporate Resources Group,Softcat Ltd,240114,221768.28,Payment relating to IT software maintenance,SL7 1LW,Administration,
HM Procurator General and Treasury Solicitor,Government Legal Department,07/07/2022,Consumables It,Corporate Resources Group,Cdw Limited,240121,49995.09,Payment relating to IT consumables,EC4M 9AF,Administration,
HM Procurator General and Treasury Solicitor,Government Legal Department,07/07/2022,Solicitor's Agents Fees,Legal case disbursements,Womble Bond Dickinson Llp,1003818,22801.17,Payment for professional services for legal case,NE1 3DX,Administration,
HM Procurator General and Treasury Solicitor,Government Legal Department,13/07/2022,Advisory External Legal Spend,Legal Advisory Group,Dentons UK And Middle East Llp(Denton Wilde ),240241,36933.75,Payment for professional services,EC4M 7WS,Administration,
HM Procurator General and Treasury Solicitor,Government Legal Department,13/07/2022,Fixed Asset Acquisitions,Corporate Resources Group,Cdw Limited,240263,55286.98,Payment for the acquisition of fixed assets,EC4M 9AF,Administration,
HM Procurator General and Treasury Solicitor,Government Legal Department,13/07/2022,Maintenance: Software,Corporate Resources Group,Cdw Limited,240271,29427.52,Payment relating to IT software maintenance,EC4M 9AF,Administration,
HM Procurator General and Treasury Solicitor,Government Legal Department,13/07/2022,Consumables It: Other,Corporate Resources Group,Cdw Limited,240277,70805.82,Payment relating to IT consumables,EC4M 9AF,Administration,
HM Procurator General and Treasury Solicitor,Government Legal Department,13/07/2022,Network Services,Corporate Resources Group,Cdw Limited,240286,26957.54,Payment relating to IT network services ,EC4M 9AF,Administration,
HM Procurator General and Treasury Solicitor,Government Legal Department,13/07/2022,Network Services,Corporate Resources Group,Cdw Limited,240294,55932.61,Payment relating to IT network services ,EC4M 9AF,Administration,
HM Procurator General and Treasury Solicitor,Government Legal Department,13/07/2022,Counsel Fees,Legal case disbursements,Counsel,1004234,47325.00,Payment of Counsel fees for legal cases,,Administration,
HM Procurator General and Treasury Solicitor,Government Legal Department,13/07/2022,Maintenance: Accommodation,Corporate Resources Group,Cabinet Office,240232,24921.99,Payment relating to accommodation (office) maintenance,SW1H 9GL,Administration,Public Sector
HM Procurator General and Treasury Solicitor,Government Legal Department,15/07/2022,Network Services,Corporate Resources Group,Cdw Limited,240358,28331.92,Payment relating to IT network services ,EC4M 9AF,Administration,
HM Procurator General and Treasury Solicitor,Government Legal Department,15/07/2022,Maintenance: Software,Corporate Resources Group,Cdw Limited,240362,39900.00,Payment relating to IT software maintenance,EC4M 9AF,Administration,
HM Procurator General and Treasury Solicitor,Government Legal Department,15/07/2022,Network Services,Corporate Resources Group,Cdw Limited,240363,29191.92,Payment relating to IT network services ,EC4M 9AF,Administration,
HM Procurator General and Treasury Solicitor,Government Legal Department,15/07/2022,Network Services,Corporate Resources Group,Cdw Limited,240377,28630.06,Payment relating to IT network services ,EC4M 9AF,Administration,
HM Procurator General and Treasury Solicitor,Government Legal Department,15/07/2022,Agency Staff: Legal,Litigation Division,Alexander Mann Solutions Limited,240386,47705.87,Payment for interim legal professionals,EC2N 3AQ,Administration,
HM Procurator General and Treasury Solicitor,Government Legal Department,15/07/2022,Photocopiers:Copy Charge&Maint,Corporate Resources Group,Altodigital,240388,72838.10,Payment relating to printing and copying services,DY6 7FR,Administration,
HM Procurator General and Treasury Solicitor,Government Legal Department,15/07/2022,Agency Staff: Legal,Litigation Division,Alexander Mann Solutions Limited,240394,26077.70,Payment for interim legal professionals,EC2N 3AQ,Administration,
HM Procurator General and Treasury Solicitor,Government Legal Department,19/07/2022,Maintenance: Accommodation,Corporate Resources Group,Cabinet Office,240411,33673.64,Payment relating to accommodation (office) maintenance,SW1H 9GL,Administration,Public Sector
HM Procurator General and Treasury Solicitor,Government Legal Department,19/07/2022,Agency Staff: Legal,Litigation Division,Alexander Mann Solutions Limited,240414,30717.55,Payment for interim legal professionals,EC2N 3AQ,Administration,
HM Procurator General and Treasury Solicitor,Government Legal Department,19/07/2022,Agency Staff: Legal,Litigation Division,Alexander Mann Solutions Limited,240416,60741.99,Payment for interim legal professionals,EC2N 3AQ,Administration,
HM Procurator General and Treasury Solicitor,Government Legal Department,19/07/2022,Agency Staff: Legal,Litigation Division,Alexander Mann Solutions Limited,240425,51802.56,Payment for interim legal professionals,EC2N 3AQ,Administration,
HM Procurator General and Treasury Solicitor,Government Legal Department,19/07/2022,Agency Staff: Legal,Litigation Division,Alexander Mann Solutions Limited,240428,73022.57,Payment for interim legal professionals,EC2N 3AQ,Administration,
HM Procurator General and Treasury Solicitor,Government Legal Department,19/07/2022,Fixed Asset Acquisitions,Corporate Resources Group,Insight Direct (UK) Limited,240429,177177.00,Payment for the acquisition of fixed assets,UB8 1PH,Administration,
HM Procurator General and Treasury Solicitor,Government Legal Department,19/07/2022,Agency Staff: Admin,Corporate Resources Group,Experis (Elan Computing Ltd),240470,27909.40,Payment for agency staff,EC4V6AB,Administration,
HM Procurator General and Treasury Solicitor,Government Legal Department,19/07/2022,Travel and Accommodation Contract,Corporate Resources Group,Corporate Travel Management (North) Limited,240477,30573.72,Payment related to travel and accommodation,EC4V4AB,Administration,
HM Procurator General and Treasury Solicitor,Government Legal Department,19/07/2022,Agency Staff: Legal,Litigation Division,Alexander Mann Solutions Limited,240408,-89087.36,Refund related to payment for interim legal professionals,EC2N 3AQ,Administration,
HM Procurator General and Treasury Solicitor,Government Legal Department,21/07/2022,Advisory External Legal Spend,Legal Advisory Group,Dentons UK And Middle East Llp(Denton Wilde ),240570,46675.60,Payment for professional services,EC4M 7WS,Administration,
HM Procurator General and Treasury Solicitor,Government Legal Department,22/07/2022,Fixed Asset Acquisitions,Corporate Resources Group,Insight Direct (UK) Limited,240656,125125.00,Payment for the acquisition of fixed assets,UB8 1PH,Administration,
HM Procurator General and Treasury Solicitor,Government Legal Department,22/07/2022,Fixed Asset Acquisitions,Corporate Resources Group,Insight Direct (UK) Limited,240658,119098.98,Payment for the acquisition of fixed assets,UB8 1PH,Administration,
HM Procurator General and Treasury Solicitor,Government Legal Department,25/07/2022,Commnctns: Mobile Telephones,Corporate Resources Group,Telefonica UK Ltd,240710,34634.60,Payment relating to mobile telephony,SL1 4DX,Administration,
HM Procurator General and Treasury Solicitor,Government Legal Department,25/07/2022,Network Services,Corporate Resources Group,Colt Technology Services,240700,23671.77,Payment relating to IT network services ,EC2A 3EH,Administration,
HM Procurator General and Treasury Solicitor,Government Legal Department,27/07/2022,Network Services,Corporate Resources Group,Cdw Limited,240763,27880.47,Payment relating to IT network services ,EC4M 9AF,Administration,
HM Procurator General and Treasury Solicitor,Government Legal Department,27/07/2022,Agency Staff: Legal,Litigation Division,Alexander Mann Solutions Limited,240778,31413.48,Payment for interim legal professionals,EC2N 3AQ,Administration,
HM Procurator General and Treasury Solicitor,Government Legal Department,27/07/2022,Agency Staff: Legal,Litigation Division,Alexander Mann Solutions Limited,240780,43395.76,Payment for interim legal professionals,EC2N 3AQ,Administration,
HM Procurator General and Treasury Solicitor,Government Legal Department,27/07/2022,Agency Staff: Legal,Litigation Division,Alexander Mann Solutions Limited,240782,43729.98,Payment for interim legal professionals,EC2N 3AQ,Administration,
HM Procurator General and Treasury Solicitor,Government Legal Department,27/07/2022,Solicitor's Agents Fees,Legal case disbursements,Womble Bond Dickinson Llp,1005808,47500.00,Payment for professional services for legal case,NE1 3DX,Administration,
HM Procurator General and Treasury Solicitor,Government Legal Department,27/07/2022,Solicitor's Agents Fees,Legal case disbursements,Womble Bond Dickinson Llp,1005809,47500.00,Payment for professional services for legal case,NE1 3DX,Administration,
HM Procurator General and Treasury Solicitor,Government Legal Department,29/07/2022,Counsel Fees,Legal case disbursements,Counsel,1006180,31470.00,Payment of Counsel fees for legal cases,,Administration,
HM Procurator General and Treasury Solicitor,Government Legal Department,29/07/2022,Advisory External Legal Spend,Commercial Legal Group,Tlt Solicitors,240828,20940.00,Payment for professional services,BS1 6TP,Administration,
Nil return for Attorney General's Office ,,,,,,,,,,,
NIL return for HM Crown Prosecution Inspectorate,,,,,,,,,,,
